[Event "Late-Titled-Tuesday-Blitz-April-02-2024"]
[Site "Chess.com"]
[Date "2024.04.02"]
[Round "5"]
[White "ellennilssen"]
[Black "katharinareinecke"]
[Result "1/2-1/2"]
[WhiteElo "2297"]
[BlackElo "2010"]
[TimeControl "180+1"]
[EndTime "14:53:37 PDT"]
[Termination "Game drawn by repetition"]

1. Nf3 {[%clk 0:03:00.9]} 1... d5 {[%clk 0:02:56.4]} 2. b3 {[%clk 0:03:00.7]}
2... Nf6 {[%clk 0:02:53.5]} 3. Bb2 {[%clk 0:03:01.1]} 3... g6 {[%clk 0:02:50.8]}
4. e3 {[%clk 0:03:01.3]} 4... Bg7 {[%clk 0:02:50.5]} 5. Be2 {[%clk 0:03:01.5]}
5... O-O {[%clk 0:02:50.3]} 6. O-O {[%clk 0:03:01.5]} 6... e6 {[%clk 0:02:50.2]}
7. c4 {[%clk 0:03:01.6]} 7... b6 {[%clk 0:02:49]} 8. Nc3 {[%clk 0:02:58.2]} 8...
Bb7 {[%clk 0:02:48.9]} 9. cxd5 {[%clk 0:02:58.1]} 9... Nxd5 {[%clk 0:02:46.5]}
10. Rc1 {[%clk 0:02:57.9]} 10... c5 {[%clk 0:02:41.5]} 11. d4 {[%clk 0:02:55.7]}
11... cxd4 {[%clk 0:02:36]} 12. Nxd4 {[%clk 0:02:56.6]} 12... Nxc3 {[%clk
0:02:23.1]} 13. Bxc3 {[%clk 0:02:55.6]} 13... Nd7 {[%clk 0:02:16.3]} 14. Nb5
{[%clk 0:02:52.2]} 14... Nc5 {[%clk 0:02:07.6]} 15. Nd6 {[%clk 0:02:49.4]} 15...
Bd5 {[%clk 0:01:53]} 16. Bxg7 {[%clk 0:02:44.2]} 16... Kxg7 {[%clk 0:01:51.2]}
17. Nc4 {[%clk 0:02:38.2]} 17... Qe7 {[%clk 0:01:44.6]} 18. b4 {[%clk
0:02:31.5]} 18... Ne4 {[%clk 0:01:32.3]} 19. f3 {[%clk 0:02:22.1]} 19... Nf6
{[%clk 0:01:30.7]} 20. e4 {[%clk 0:02:13.4]} 20... Bb7 {[%clk 0:01:29.7]} 21.
Qb3 {[%clk 0:02:09]} 21... Rfd8 {[%clk 0:01:28]} 22. Rfd1 {[%clk 0:02:08]} 22...
Rxd1+ {[%clk 0:01:23.5]} 23. Rxd1 {[%clk 0:02:08.9]} 23... Rd8 {[%clk
0:01:23.2]} 24. a3 {[%clk 0:01:58.1]} 24... Nh5 {[%clk 0:01:14]} 25. Qe3 {[%clk
0:01:45.4]} 25... h6 {[%clk 0:01:11.9]} 26. g4 {[%clk 0:01:41.1]} 26... Nf6
{[%clk 0:01:01.7]} 27. h4 {[%clk 0:01:40.4]} 27... Rxd1+ {[%clk 0:00:55.8]} 28.
Bxd1 {[%clk 0:01:41]} 28... Nd7 {[%clk 0:00:48.2]} 29. Qd4+ {[%clk 0:01:09.2]}
29... Kh7 {[%clk 0:00:45.3]} 30. Kg2 {[%clk 0:01:03.1]} 30... h5 {[%clk
0:00:41.3]} 31. g5 {[%clk 0:01:01.7]} 31... e5 {[%clk 0:00:34.8]} 32. Qd6 {[%clk
0:01:00.5]} 32... Qe8 {[%clk 0:00:24]} 33. Bb3 {[%clk 0:00:57.9]} 33... Ba6
{[%clk 0:00:21.3]} 34. Ne3 {[%clk 0:00:56.6]} 34... Qc8 {[%clk 0:00:18]} 35. Nd5
{[%clk 0:00:52.2]} 35... Qc1 {[%clk 0:00:16.2]} 36. Qxd7 {[%clk 0:00:05.6]}
36... Qf1+ {[%clk 0:00:15.2]} 37. Kh2 {[%clk 0:00:05.9]} 37... Qf2+ {[%clk
0:00:12.6]} 38. Kh1 {[%clk 0:00:05.1]} 38... Qxf3+ {[%clk 0:00:11.9]} 39. Kh2
{[%clk 0:00:05.5]} 39... Qf2+ {[%clk 0:00:11.9]} 40. Kh1 {[%clk 0:00:05.7]}
40... Qf3+ {[%clk 0:00:10.6]} 41. Kh2 {[%clk 0:00:05.6]} 41... Qf2+ {[%clk
0:00:09.8]} 42. Kh1 {[%clk 0:00:05.9]} 42... Qf3+ {[%clk 0:00:10.1]} 1/2-1/2

[Event "Late-Titled-Tuesday-Blitz-April-02-2024"]
[Site "Chess.com"]
[Date "2024.04.02"]
[Round "5"]
[White "nabukatnezarr"]
[Black "Happy1712Drummer"]
[Result "1-0"]
[WhiteElo "2623"]
[BlackElo "2454"]
[TimeControl "180+1"]
[EndTime "14:53:40 PDT"]
[Termination "nabukatnezarr won on time"]

1. e3 {[%clk 0:02:55.1]} 1... g6 {[%clk 0:02:52.6]} 2. d4 {[%clk 0:02:53.3]}
2... Bg7 {[%clk 0:02:52.7]} 3. Nf3 {[%clk 0:02:53.9]} 3... c5 {[%clk 0:02:50.8]}
4. c3 {[%clk 0:02:42.8]} 4... cxd4 {[%clk 0:02:49]} 5. exd4 {[%clk 0:02:33.9]}
5... Nf6 {[%clk 0:02:49.9]} 6. Bc4 {[%clk 0:02:30.2]} 6... O-O {[%clk
0:02:42.3]} 7. O-O {[%clk 0:02:29.9]} 7... d5 {[%clk 0:02:41.3]} 8. Bd3 {[%clk
0:02:26.8]} 8... Bf5 {[%clk 0:02:41.6]} 9. Bxf5 {[%clk 0:02:26]} 9... gxf5
{[%clk 0:02:41.2]} 10. Bf4 {[%clk 0:02:23.7]} 10... e6 {[%clk 0:02:38.6]} 11.
Ne5 {[%clk 0:02:19.2]} 11... Nc6 {[%clk 0:02:36.4]} 12. Nd2 {[%clk 0:02:16.8]}
12... Ne7 {[%clk 0:02:35.3]} 13. Ndf3 {[%clk 0:02:02.6]} 13... Ng6 {[%clk
0:02:34.7]} 14. Bg5 {[%clk 0:02:03]} 14... Qc7 {[%clk 0:02:33.7]} 15. Bxf6
{[%clk 0:01:57]} 15... Bxf6 {[%clk 0:02:34.6]} 16. Re1 {[%clk 0:01:55.9]} 16...
Kh8 {[%clk 0:02:32.6]} 17. Qd2 {[%clk 0:01:52.9]} 17... Rg8 {[%clk 0:02:30.7]}
18. Qh6 {[%clk 0:01:48.1]} 18... Rg7 {[%clk 0:02:26.6]} 19. Kh1 {[%clk
0:01:33.2]} 19... Rag8 {[%clk 0:02:23.6]} 20. g3 {[%clk 0:01:24.3]} 20... Qe7
{[%clk 0:02:04.4]} 21. Qd2 {[%clk 0:01:19.9]} 21... a6 {[%clk 0:01:36.6]} 22. a4
{[%clk 0:01:19.8]} 22... Nf8 {[%clk 0:01:33.9]} 23. a5 {[%clk 0:01:17.6]} 23...
Nd7 {[%clk 0:01:19.5]} 24. Ra3 {[%clk 0:01:14.1]} 24... Bxe5 {[%clk 0:01:13.6]}
25. Nxe5 {[%clk 0:01:15]} 25... Nf6 {[%clk 0:01:12.2]} 26. f3 {[%clk 0:01:11]}
26... Nh5 {[%clk 0:01:07.2]} 27. Rb3 {[%clk 0:00:55.7]} 27... Qf6 {[%clk
0:00:37.6]} 28. Rxb7 {[%clk 0:00:40.9]} 28... Rxg3 {[%clk 0:00:29]} 29. Nxf7+
{[%clk 0:00:36.7]} 29... Qxf7 {[%clk 0:00:27.9]} 30. Rxf7 {[%clk 0:00:34.4]}
30... Rh3 {[%clk 0:00:28.8]} 31. Rg1 {[%clk 0:00:18.6]} 31... f4 {[%clk
0:00:15.1]} 32. Rxg8+ {[%clk 0:00:17.7]} 32... Kxg8 {[%clk 0:00:16]} 33. Rxf4
{[%clk 0:00:16.5]} 33... Ng3+ {[%clk 0:00:14.7]} 34. Kg2 {[%clk 0:00:16.4]}
34... Rxh2+ {[%clk 0:00:15.1]} 35. Kxh2 {[%clk 0:00:14.9]} 35... Nf1+ {[%clk
0:00:16]} 36. Kh3 {[%clk 0:00:13.7]} 36... Nxd2 {[%clk 0:00:16.9]} 37. Rf6
{[%clk 0:00:13.4]} 37... Nc4 {[%clk 0:00:16.1]} 38. Rxe6 {[%clk 0:00:13]} 38...
Nxa5 {[%clk 0:00:17]} 39. Rxa6 {[%clk 0:00:12.9]} 39... Nc4 {[%clk 0:00:17.8]}
40. b4 {[%clk 0:00:13.3]} 40... Kf7 {[%clk 0:00:17.1]} 41. b5 {[%clk 0:00:13.8]}
1-0

[Event "Late-Titled-Tuesday-Blitz-April-02-2024"]
[Site "Chess.com"]
[Date "2024.04.02"]
[Round "5"]
[White "Bala-Afiada"]
[Black "javierfreilemartin"]
[Result "0-1"]
[WhiteElo "1966"]
[BlackElo "2301"]
[TimeControl "180+1"]
[EndTime "14:53:43 PDT"]
[Termination "javierfreilemartin won by resignation"]

1. d4 {[%clk 0:02:59.3]} 1... Nf6 {[%clk 0:02:58.7]} 2. c4 {[%clk 0:02:59.6]}
2... g6 {[%clk 0:02:57.8]} 3. Nc3 {[%clk 0:02:59.6]} 3... Bg7 {[%clk 0:02:57.6]}
4. e4 {[%clk 0:02:59.8]} 4... d6 {[%clk 0:02:57.6]} 5. Nf3 {[%clk 0:03:00.3]}
5... O-O {[%clk 0:02:57]} 6. Be2 {[%clk 0:03:00.9]} 6... e5 {[%clk 0:02:56.7]}
7. Be3 {[%clk 0:03:01.3]} 7... exd4 {[%clk 0:02:55.6]} 8. Nxd4 {[%clk
0:03:01.3]} 8... Re8 {[%clk 0:02:55.5]} 9. f3 {[%clk 0:03:01.1]} 9... c6 {[%clk
0:02:55.6]} 10. O-O {[%clk 0:02:52.3]} 10... d5 {[%clk 0:02:55.4]} 11. cxd5
{[%clk 0:02:52.1]} 11... Nxd5 {[%clk 0:02:54.8]} 12. Bf2 {[%clk 0:02:44.9]}
12... Nf4 {[%clk 0:02:48.7]} 13. Bc4 {[%clk 0:01:57.8]} 13... Nd7 {[%clk
0:02:40.7]} 14. Nde2 {[%clk 0:01:50]} 14... Nxe2+ {[%clk 0:02:30.2]} 15. Qxe2
{[%clk 0:01:45.6]} 15... Ne5 {[%clk 0:02:29.4]} 16. Bb3 {[%clk 0:01:41.4]} 16...
a5 {[%clk 0:02:28.4]} 17. Rad1 {[%clk 0:01:39.5]} 17... Qe7 {[%clk 0:02:22.7]}
18. Na4 {[%clk 0:01:28.2]} 18... b5 {[%clk 0:02:14.2]} 19. Nb6 {[%clk
0:01:04.7]} 19... Rb8 {[%clk 0:01:45]} 20. Nxc8 {[%clk 0:01:01.1]} 20... Rbxc8
{[%clk 0:01:43.4]} 21. a3 {[%clk 0:00:46.6]} 21... a4 {[%clk 0:01:04.1]} 22. Ba2
{[%clk 0:00:46.2]} 22... h5 {[%clk 0:01:00.7]} 23. Rc1 {[%clk 0:00:29.4]} 23...
h4 {[%clk 0:00:58.3]} 24. Bc5 {[%clk 0:00:28.9]} 24... Qf6 {[%clk 0:00:50.7]}
25. f4 {[%clk 0:00:20]} 25... Nc4 {[%clk 0:00:45.3]} 26. Bxc4 {[%clk 0:00:18.7]}
26... bxc4 {[%clk 0:00:45.5]} 27. e5 {[%clk 0:00:13.3]} 27... Qe6 {[%clk
0:00:44.5]} 28. Qxc4 {[%clk 0:00:12.6]} 28... Qg4 {[%clk 0:00:40.9]} 29. Bd6
{[%clk 0:00:10.9]} 29... h3 {[%clk 0:00:38.4]} 30. g3 {[%clk 0:00:09.2]} 30...
Re6 {[%clk 0:00:32.5]} 31. Rf2 {[%clk 0:00:09.3]} 31... Rd8 {[%clk 0:00:26.8]}
32. Qe2 {[%clk 0:00:09]} 32... Qxe2 {[%clk 0:00:23.1]} 33. Rxe2 {[%clk
0:00:09.9]} 33... Rdxd6 {[%clk 0:00:21.8]} 34. exd6 {[%clk 0:00:07.4]} 34...
Rxe2 {[%clk 0:00:22.2]} 35. d7 {[%clk 0:00:07.4]} 35... Rd2 {[%clk 0:00:21.5]}
36. Rxc6 {[%clk 0:00:07.6]} 36... Rxd7 {[%clk 0:00:20.3]} 37. Rc4 {[%clk
0:00:07.9]} 37... Rd2 {[%clk 0:00:19.3]} 38. Rxa4 {[%clk 0:00:07.7]} 38... Rxb2
{[%clk 0:00:16.8]} 39. Ra8+ {[%clk 0:00:07.4]} 39... Kh7 {[%clk 0:00:16.4]} 40.
a4 {[%clk 0:00:07.9]} 40... f5 {[%clk 0:00:16]} 41. a5 {[%clk 0:00:07.2]} 41...
Bd4+ {[%clk 0:00:15.3]} 42. Kf1 {[%clk 0:00:07.2]} 42... Rxh2 {[%clk 0:00:14.9]}
43. a6 {[%clk 0:00:07.9]} 43... Ra2 {[%clk 0:00:13]} 44. Ke1 {[%clk 0:00:08.1]}
44... h2 {[%clk 0:00:12.7]} 45. Ra7+ {[%clk 0:00:07.9]} 45... Bxa7 {[%clk
0:00:11.2]} 0-1

[Event "Late-Titled-Tuesday-Blitz-April-02-2024"]
[Site "Chess.com"]
[Date "2024.04.02"]
[Round "5"]
[White "newauto"]
[Black "Jaka_Brilej"]
[Result "0-1"]
[WhiteElo "2202"]
[BlackElo "2566"]
[TimeControl "180+1"]
[EndTime "14:53:45 PDT"]
[Termination "Jaka_Brilej won by checkmate"]

1. d4 {[%clk 0:03:00.9]} 1... Nf6 {[%clk 0:02:59.4]} 2. Nf3 {[%clk 0:03:01.5]}
2... g6 {[%clk 0:02:59.2]} 3. Bg5 {[%clk 0:03:01.3]} 3... Bg7 {[%clk 0:02:58.9]}
4. Nbd2 {[%clk 0:03:01.6]} 4... O-O {[%clk 0:02:54.6]} 5. e4 {[%clk 0:03:01.8]}
5... d6 {[%clk 0:02:55.2]} 6. Bd3 {[%clk 0:03:01.4]} 6... Nc6 {[%clk 0:02:49.9]}
7. c3 {[%clk 0:02:58.4]} 7... e5 {[%clk 0:02:49.1]} 8. O-O {[%clk 0:02:57.1]}
8... Bg4 {[%clk 0:02:48.7]} 9. h3 {[%clk 0:02:56.1]} 9... Bxf3 {[%clk
0:02:44.8]} 10. Nxf3 {[%clk 0:02:57]} 10... h6 {[%clk 0:02:45.2]} 11. Bh4 {[%clk
0:02:51.7]} 11... Qe7 {[%clk 0:02:33.8]} 12. dxe5 {[%clk 0:02:50.7]} 12... dxe5
{[%clk 0:02:34.7]} 13. Qb3 {[%clk 0:02:47.3]} 13... b6 {[%clk 0:02:26.2]} 14.
Rad1 {[%clk 0:02:45.9]} 14... Rad8 {[%clk 0:02:21.5]} 15. Qa4 {[%clk 0:02:44.6]}
15... Qc5 {[%clk 0:02:18.2]} 16. Bb5 {[%clk 0:02:37.8]} 16... Ne7 {[%clk
0:02:11.6]} 17. Bd3 {[%clk 0:02:22.7]} 17... g5 {[%clk 0:02:10]} 18. Bg3 {[%clk
0:02:22.1]} 18... Ng6 {[%clk 0:02:09.9]} 19. Bc4 {[%clk 0:01:11.4]} 19... Nh5
{[%clk 0:02:05.7]} 20. Bh2 {[%clk 0:01:08.2]} 20... Nhf4 {[%clk 0:01:56]} 21.
Rxd8 {[%clk 0:01:06.1]} 21... Rxd8 {[%clk 0:01:56.5]} 22. Bb3 {[%clk 0:01:03.6]}
22... a5 {[%clk 0:01:45.2]} 23. Rd1 {[%clk 0:01:01.6]} 23... Qe7 {[%clk
0:01:02.8]} 24. Qc6 {[%clk 0:00:57]} 24... Rxd1+ {[%clk 0:00:54.5]} 25. Bxd1
{[%clk 0:00:56.4]} 25... Qd8 {[%clk 0:00:55.4]} 26. Bb3 {[%clk 0:00:56.3]} 26...
Nf8 {[%clk 0:00:50.4]} 27. Bxf4 {[%clk 0:00:51.3]} 27... exf4 {[%clk 0:00:49.7]}
28. e5 {[%clk 0:00:50.4]} 28... Qe7 {[%clk 0:00:46.8]} 29. Qd5 {[%clk 0:00:47]}
29... Ne6 {[%clk 0:00:45.6]} 30. Nd4 {[%clk 0:00:45.9]} 30... Nc5 {[%clk
0:00:35]} 31. Nf5 {[%clk 0:00:37.7]} 31... Qf8 {[%clk 0:00:34.1]} 32. Bc2 {[%clk
0:00:27.9]} 32... Ne6 {[%clk 0:00:28.9]} 33. Qd7 {[%clk 0:00:25.9]} 33... Bxe5
{[%clk 0:00:27.1]} 34. Ne7+ {[%clk 0:00:20.1]} 34... Kh8 {[%clk 0:00:24.4]} 35.
Qd3 {[%clk 0:00:20.7]} 35... Qg7 {[%clk 0:00:21.2]} 36. Nf5 {[%clk 0:00:18.9]}
36... Qf6 {[%clk 0:00:20.7]} 37. Nd4 {[%clk 0:00:16.3]} 37... Kg7 {[%clk
0:00:19.4]} 38. Qh7+ {[%clk 0:00:15.4]} 38... Kf8 {[%clk 0:00:19.9]} 39. Nc6
{[%clk 0:00:13.5]} 39... Ke8 {[%clk 0:00:18.6]} 40. Nxe5 {[%clk 0:00:12.7]}
40... Qxe5 {[%clk 0:00:19.1]} 41. Qxh6 {[%clk 0:00:12.9]} 41... Qe1+ {[%clk
0:00:18.4]} 42. Kh2 {[%clk 0:00:13.5]} 42... Qxf2 {[%clk 0:00:18.5]} 43. Qh8+
{[%clk 0:00:11.5]} 43... Ke7 {[%clk 0:00:19]} 44. Bb3 {[%clk 0:00:10.3]} 44...
Qg3+ {[%clk 0:00:18.5]} 45. Kg1 {[%clk 0:00:10.5]} 45... Qe3+ {[%clk 0:00:19]}
46. Kh2 {[%clk 0:00:08.6]} 46... Qg3+ {[%clk 0:00:18.7]} 47. Kg1 {[%clk
0:00:08.7]} 47... f3 {[%clk 0:00:19.6]} 48. Kf1 {[%clk 0:00:02.3]} 48... Qxg2+
{[%clk 0:00:19.2]} 49. Ke1 {[%clk 0:00:02.3]} 49... Qe2# {[%clk 0:00:20.1]} 0-1

[Event "Late-Titled-Tuesday-Blitz-April-02-2024"]
[Site "Chess.com"]
[Date "2024.04.02"]
[Round "5"]
[White "ViIIagra"]
[Black "Kazan28"]
[Result "1-0"]
[WhiteElo "2900"]
[BlackElo "2657"]
[TimeControl "180+1"]
[EndTime "14:53:49 PDT"]
[Termination "ViIIagra won on time"]

1. g3 {[%clk 0:03:00.9]} 1... d6 {[%clk 0:03:00.9]} 2. Bg2 {[%clk 0:02:58.6]}
2... e5 {[%clk 0:02:51.8]} 3. d3 {[%clk 0:02:44.5]} 3... Be7 {[%clk 0:02:51.4]}
4. f4 {[%clk 0:02:41.8]} 4... exf4 {[%clk 0:02:47]} 5. Bxf4 {[%clk 0:02:41.6]}
5... d5 {[%clk 0:02:35.8]} 6. Nf3 {[%clk 0:02:33]} 6... Nf6 {[%clk 0:02:34.1]}
7. O-O {[%clk 0:02:33.7]} 7... O-O {[%clk 0:02:32.6]} 8. Nc3 {[%clk 0:02:33.6]}
8... Nc6 {[%clk 0:02:32.7]} 9. e4 {[%clk 0:02:17.5]} 9... Bc5+ {[%clk
0:02:27.7]} 10. Kh1 {[%clk 0:02:15.3]} 10... dxe4 {[%clk 0:02:10.9]} 11. Nxe4
{[%clk 0:02:08.2]} 11... Nxe4 {[%clk 0:02:10.6]} 12. dxe4 {[%clk 0:02:09.1]}
12... Bb6 {[%clk 0:01:53.6]} 13. c3 {[%clk 0:01:58.5]} 13... Bg4 {[%clk
0:01:50.8]} 14. Qb3 {[%clk 0:01:44.4]} 14... Be6 {[%clk 0:01:48.6]} 15. Qc2
{[%clk 0:01:27.4]} 15... Qe7 {[%clk 0:01:44.7]} 16. e5 {[%clk 0:01:15.5]} 16...
h6 {[%clk 0:01:44.9]} 17. Rae1 {[%clk 0:01:09.6]} 17... Rfd8 {[%clk 0:01:42.2]}
18. Nh4 {[%clk 0:01:09.1]} 18... Bd5 {[%clk 0:01:35.7]} 19. e6 {[%clk
0:00:41.1]} 19... Bxg2+ {[%clk 0:01:33.2]} 20. Kxg2 {[%clk 0:00:37.2]} 20...
fxe6 {[%clk 0:01:27.9]} 21. Bxh6 {[%clk 0:00:16.9]} 21... gxh6 {[%clk
0:01:14.1]} 22. Qg6+ {[%clk 0:00:16.4]} 22... Qg7 {[%clk 0:01:08.1]} 23. Qxe6+
{[%clk 0:00:16.4]} 23... Kh8 {[%clk 0:01:07.2]} 24. Ng6+ {[%clk 0:00:16.7]}
24... Kh7 {[%clk 0:01:03.8]} 25. Rf7 {[%clk 0:00:17.1]} 25... Rd2+ {[%clk
0:01:01.2]} 26. Kh3 {[%clk 0:00:15.8]} 26... Rd6 {[%clk 0:00:53.5]} 27. Rxg7+
{[%clk 0:00:04.9]} 27... Kxg7 {[%clk 0:00:54.4]} 28. Qf5 {[%clk 0:00:04.1]}
28... Rxg6 {[%clk 0:00:53.2]} 29. Rd1 {[%clk 0:00:04.8]} 29... Rd6 {[%clk
0:00:50.6]} 30. Rxd6 {[%clk 0:00:05.1]} 30... cxd6 {[%clk 0:00:51.5]} 31. Qd7+
{[%clk 0:00:05.9]} 31... Kg6 {[%clk 0:00:43.2]} 32. Qxb7 {[%clk 0:00:06.8]}
32... Rf8 {[%clk 0:00:21]} 33. Qxc6 {[%clk 0:00:06.5]} 33... Rf2 {[%clk
0:00:21.9]} 34. Qxd6+ {[%clk 0:00:05.5]} 34... Kg7 {[%clk 0:00:22.8]} 35. c4
{[%clk 0:00:04.4]} 35... Rc2 {[%clk 0:00:16.2]} 36. Qe7+ {[%clk 0:00:04.1]}
36... Kg8 {[%clk 0:00:14.6]} 37. Qe6+ {[%clk 0:00:04.5]} 37... Kg7 {[%clk
0:00:14.5]} 38. Qe5+ {[%clk 0:00:04.7]} 38... Kg8 {[%clk 0:00:14.8]} 39. Qd5+
{[%clk 0:00:03.9]} 39... Kg7 {[%clk 0:00:15.2]} 40. b4 {[%clk 0:00:04.6]} 40...
Bg1 {[%clk 0:00:14.3]} 41. c5 {[%clk 0:00:04.9]} 41... h5 {[%clk 0:00:11.2]} 42.
Qg5+ {[%clk 0:00:05.2]} 42... Kh7 {[%clk 0:00:08.1]} 43. Qf5+ {[%clk 0:00:05.3]}
43... Kg7 {[%clk 0:00:09]} 44. Qxc2 {[%clk 0:00:06.1]} 1-0

[Event "Late-Titled-Tuesday-Blitz-April-02-2024"]
[Site "Chess.com"]
[Date "2024.04.02"]
[Round "5"]
[White "ProfessorChess101"]
[Black "Viktoker"]
[Result "0-1"]
[WhiteElo "2764"]
[BlackElo "2522"]
[TimeControl "180+1"]
[EndTime "14:53:49 PDT"]
[Termination "Viktoker won by checkmate"]

1. d4 {[%clk 0:03:00.9]} 1... f5 {[%clk 0:02:59.5]} 2. Nc3 {[%clk 0:02:59.1]}
2... Nf6 {[%clk 0:02:59.3]} 3. Bg5 {[%clk 0:02:59.3]} 3... d5 {[%clk 0:02:59.7]}
4. Bxf6 {[%clk 0:02:58.8]} 4... exf6 {[%clk 0:03:00.6]} 5. e3 {[%clk 0:02:59.3]}
5... Be6 {[%clk 0:03:00.4]} 6. h4 {[%clk 0:02:58.7]} 6... Qd7 {[%clk 0:02:55.4]}
7. Nh3 {[%clk 0:02:58.8]} 7... Nc6 {[%clk 0:02:53.4]} 8. Bd3 {[%clk 0:02:56.9]}
8... g6 {[%clk 0:02:46.6]} 9. Qf3 {[%clk 0:02:50.2]} 9... O-O-O {[%clk
0:02:43.2]} 10. a3 {[%clk 0:02:48.3]} 10... Bd6 {[%clk 0:02:34.8]} 11. O-O-O
{[%clk 0:02:21.2]} 11... Ne7 {[%clk 0:02:33.5]} 12. Nb5 {[%clk 0:02:10.9]} 12...
Kb8 {[%clk 0:02:28.3]} 13. Nxd6 {[%clk 0:02:08.1]} 13... Qxd6 {[%clk 0:02:15.6]}
14. Nf4 {[%clk 0:02:08.3]} 14... Bf7 {[%clk 0:02:14.7]} 15. h5 {[%clk
0:02:03.7]} 15... g5 {[%clk 0:02:12.7]} 16. Ne2 {[%clk 0:02:03.7]} 16... Be6
{[%clk 0:02:07]} 17. Ng3 {[%clk 0:02:00.9]} 17... Qd7 {[%clk 0:02:05.5]} 18. h6
{[%clk 0:01:56.2]} 18... Rhe8 {[%clk 0:02:02.8]} 19. Nh5 {[%clk 0:01:54.7]}
19... Rf8 {[%clk 0:01:54.8]} 20. Ng7 {[%clk 0:01:54.5]} 20... Rc8 {[%clk
0:01:27.8]} 21. Kb1 {[%clk 0:01:54.3]} 21... Ka8 {[%clk 0:01:18.5]} 22. Qe2
{[%clk 0:01:38.3]} 22... Bf7 {[%clk 0:01:12.6]} 23. g4 {[%clk 0:01:26.9]} 23...
fxg4 {[%clk 0:01:04.4]} 24. Bxh7 {[%clk 0:01:27.2]} 24... f5 {[%clk 0:01:04.4]}
25. Qd3 {[%clk 0:01:11.8]} 25... Be6 {[%clk 0:01:04.1]} 26. Rh5 {[%clk
0:01:04.5]} 26... Rh8 {[%clk 0:01:01.1]} 27. Bxf5 {[%clk 0:01:02.3]} 27... Bxf5
{[%clk 0:00:58.5]} 28. Qd2 {[%clk 0:00:53.4]} 28... Be4 {[%clk 0:00:54.2]} 29.
Rg1 {[%clk 0:00:47.5]} 29... Nf5 {[%clk 0:00:53.9]} 30. Rxg5 {[%clk 0:00:39.4]}
30... Rxh6 {[%clk 0:00:46.3]} 31. R5xg4 {[%clk 0:00:26]} 31... Nd6 {[%clk
0:00:34.7]} 32. b3 {[%clk 0:00:19.9]} 32... a6 {[%clk 0:00:32.2]} 33. R4g3
{[%clk 0:00:14]} 33... Qb5 {[%clk 0:00:30.5]} 34. Ka1 {[%clk 0:00:11.2]} 34...
c5 {[%clk 0:00:26.5]} 35. f3 {[%clk 0:00:11.6]} 35... Bh7 {[%clk 0:00:26.4]} 36.
e4 {[%clk 0:00:11.7]} 36... dxe4 {[%clk 0:00:21.8]} 37. Qxh6 {[%clk 0:00:11.2]}
37... cxd4 {[%clk 0:00:18.1]} 38. Qxd6 {[%clk 0:00:11.3]} 38... d3 {[%clk
0:00:17.8]} 39. cxd3 {[%clk 0:00:06.3]} 39... exd3 {[%clk 0:00:18.7]} 40. Qb4
{[%clk 0:00:05.5]} 40... Qe5+ {[%clk 0:00:18.4]} 41. Kb1 {[%clk 0:00:04.4]}
41... d2+ {[%clk 0:00:18.4]} 42. Qe4 {[%clk 0:00:01.6]} 42... Bxe4+ {[%clk
0:00:17.6]} 43. fxe4 {[%clk 0:00:02.5]} 43... Qxe4+ {[%clk 0:00:18.5]} 44. Kb2
{[%clk 0:00:03.1]} 44... Qc2+ {[%clk 0:00:18.5]} 45. Ka1 {[%clk 0:00:03.8]}
45... d1=Q+ {[%clk 0:00:19.1]} 46. Rxd1 {[%clk 0:00:02.5]} 46... Qxd1+ {[%clk
0:00:20]} 47. Kb2 {[%clk 0:00:03.2]} 47... Qd2+ {[%clk 0:00:20.5]} 48. Kb1
{[%clk 0:00:02.5]} 48... Rc1# {[%clk 0:00:21.4]} 0-1

[Event "Late-Titled-Tuesday-Blitz-April-02-2024"]
[Site "Chess.com"]
[Date "2024.04.02"]
[Round "5"]
[White "teresin05"]
[Black "Bilan_Danila"]
[Result "0-1"]
[WhiteElo "2276"]
[BlackElo "2571"]
[TimeControl "180+1"]
[EndTime "14:53:52 PDT"]
[Termination "Bilan_Danila won by resignation"]

1. e4 {[%clk 0:03:00.9]} 1... c6 {[%clk 0:02:49.8]} 2. d4 {[%clk 0:03:00]} 2...
d5 {[%clk 0:02:48.9]} 3. Nc3 {[%clk 0:02:57.7]} 3... dxe4 {[%clk 0:02:42.9]} 4.
Nxe4 {[%clk 0:02:58.6]} 4... Bf5 {[%clk 0:02:43]} 5. Ng3 {[%clk 0:02:57.2]} 5...
Bg6 {[%clk 0:02:42.9]} 6. h4 {[%clk 0:02:55.7]} 6... h6 {[%clk 0:02:43]} 7. Nf3
{[%clk 0:02:50.6]} 7... Nd7 {[%clk 0:02:42.6]} 8. Bd3 {[%clk 0:02:41.8]} 8...
Bxd3 {[%clk 0:02:42.5]} 9. Qxd3 {[%clk 0:02:40.7]} 9... Qc7 {[%clk 0:02:42.1]}
10. Bd2 {[%clk 0:02:39.7]} 10... e6 {[%clk 0:02:42.5]} 11. O-O-O {[%clk
0:02:31.7]} 11... Bd6 {[%clk 0:02:43.1]} 12. Ne4 {[%clk 0:02:28.6]} 12... Ngf6
{[%clk 0:02:43.7]} 13. Nxd6+ {[%clk 0:02:28]} 13... Qxd6 {[%clk 0:02:44.6]} 14.
c4 {[%clk 0:02:22.2]} 14... b5 {[%clk 0:02:44.6]} 15. c5 {[%clk 0:02:19.9]}
15... Qd5 {[%clk 0:02:44.5]} 16. b3 {[%clk 0:02:17.7]} 16... Nxc5 {[%clk
0:02:41.6]} 17. Qe3 {[%clk 0:02:14.8]} 17... Nce4 {[%clk 0:02:37.5]} 18. Rhe1
{[%clk 0:02:12.2]} 18... Nxd2 {[%clk 0:02:32.5]} 19. Rxd2 {[%clk 0:02:07.6]}
19... O-O {[%clk 0:02:30.4]} 20. Ne5 {[%clk 0:02:00.2]} 20... Qxg2 {[%clk
0:01:52.1]} 21. f3 {[%clk 0:01:54.3]} 21... Qh3 {[%clk 0:01:41.7]} 22. Rg1
{[%clk 0:01:33.8]} 22... Kh8 {[%clk 0:01:27.3]} 23. Nxc6 {[%clk 0:01:23.4]}
23... Rac8 {[%clk 0:01:22.6]} 24. Rc2 {[%clk 0:01:23.5]} 24... Qxh4 {[%clk
0:01:02.4]} 25. Kb2 {[%clk 0:01:19.3]} 25... Nd5 {[%clk 0:00:57.8]} 26. Qd2
{[%clk 0:01:07.4]} 26... Rc7 {[%clk 0:00:48.9]} 27. Ne5 {[%clk 0:00:30.8]} 27...
Rxc2+ {[%clk 0:00:36.5]} 28. Kxc2 {[%clk 0:00:31.7]} 28... Qf4 {[%clk
0:00:32.1]} 29. Qxf4 {[%clk 0:00:14.8]} 29... Nxf4 {[%clk 0:00:31.7]} 30. Rg4
{[%clk 0:00:15.1]} 30... Nd5 {[%clk 0:00:30.4]} 31. a3 {[%clk 0:00:07.3]} 31...
Ne3+ {[%clk 0:00:30.2]} 32. Kd3 {[%clk 0:00:07]} 32... Nxg4 {[%clk 0:00:31.1]}
33. fxg4 {[%clk 0:00:07.3]} 33... g6 {[%clk 0:00:28.6]} 34. Ke4 {[%clk
0:00:07.3]} 34... Kg7 {[%clk 0:00:28.2]} 35. d5 {[%clk 0:00:07.6]} 35... exd5+
{[%clk 0:00:27.7]} 36. Kxd5 {[%clk 0:00:08.5]} 36... h5 {[%clk 0:00:27.1]} 37.
gxh5 {[%clk 0:00:08.1]} 37... gxh5 {[%clk 0:00:28]} 38. Kc5 {[%clk 0:00:07.2]}
38... Re8 {[%clk 0:00:25.3]} 39. Nf3 {[%clk 0:00:07]} 39... Re3 {[%clk 0:00:25]}
40. Nh4 {[%clk 0:00:07.4]} 40... Rxb3 {[%clk 0:00:24.5]} 41. Nf5+ {[%clk
0:00:06.1]} 41... Kf6 {[%clk 0:00:24.4]} 42. Nd4 {[%clk 0:00:05.6]} 42... Rxa3
{[%clk 0:00:21.4]} 43. Kxb5 {[%clk 0:00:06]} 43... h4 {[%clk 0:00:21.5]} 44. Ne2
{[%clk 0:00:04.6]} 44... h3 {[%clk 0:00:20.5]} 45. Nf4 {[%clk 0:00:02.5]} 45...
h2 {[%clk 0:00:17.7]} 46. Nh5+ {[%clk 0:00:03.4]} 46... Kg5 {[%clk 0:00:16.9]}
47. Ng3 {[%clk 0:00:04.3]} 47... Rxg3 {[%clk 0:00:16.8]} 0-1